Cogmind - Beta 17 @@@ ROGUE MODE // 2026.07.06 @ 16:13:42 Player: Cinder Result: Destroyed by C-40 Crusher with Compactor Performance ------------- Evolutions (4) 2000 Regions Visited (10) 2000 Robots Destroyed (107) 535 Value Destroyed (2926) 2926 Prototype IDs (7) 140 Alien Tech Used (0) 0 Bonus (1386) 1386 TOTAL SCORE: 8987 Bonus ------- High Alert Combat Kills 99 Follower Combat Kills 487 Registered with UFD 300 Met Optimus in HQ 500 Cogmind --------- Core Integrity 0/850 Matter 204/300 Energy 100/100 System Corruption 10% Temperature Cool (0) Movement Core (50) Location -6/Waste Parts ------- > --- POWER (1) -------- (None) > --- PROPULSION (4) --- (None) > --- UTILITY (7) ------ (None) > --- WEAPON (3) ------- (None) > --- INVENTORY (5) ---- Scrap Suit High-capacity Matter Pod (200) Heavy Armor Plating Peak State ------------ > --- POWER ------------ Light Angular Momentum Engine > --- PROPULSION ------- Multireflex Exoskeleton Wheel Wheel > --- UTILITY ---------- Scrap Suit Huge Storage Unit Enhanced Optical Array Improved Targeting Computer Improved Targeting Computer Reactive Plating > --- WEAPON ----------- Heavy Assault Rifle Heavy Assault Rifle Autogun > --- INVENTORY -------- Improved Deuterium Engine Light Angular Momentum Engine Wheel Wheel Armored Wheel Armored Wheel Scrap Suit Cryofiber Web Improved Heat Sink Advanced Heat Sink Advanced Heat Sink Huge Storage Unit High-capacity Matter Pod High-capacity Matter Pod Heavy Armor Plating Reactive Plating Reactive Plating Reactive Plating Flak Gun Flak Gun Flak Cannon Magnetic Acceleration Cannon Long-range Missile Launcher [Rating: 53] Favorites ----------- Power Ion Engine Engine Ion Engine Power Core Light Nuclear Core Propulsion Wheel Leg Multireflex Exoskeleton Wheel Wheel Utility Improved Targeting Computer Device Scrap Suit Storage Huge Storage Unit Processor Improved Targeting Computer Protection Reactive Plating Weapon Heavy Assault Rifle Energy Gun Small Laser Ballistic Gun Heavy Assault Rifle Ballistic Cannon Light Cannon Build | -11 -10 -10 -10 -9 -8 -8 -8 -8 -6 -6 ------- Run | Yrd Mat Min Exi Min Mat Sto Rec Scr Fac Was Slots Evolved 8 | . . . . . 4 . . . 4 . Power . | . . . . . . . . . . . Propulsion 2 | . . . . . 1 . . . 1 . Utility 5 | . . . . . 3 . . . 2 . Weapon 1 | . . . . . . . . . 1 . Parts Attached 88 | 8 9 . 1 . 28 6 2 8 23 3 Power 13 | 2 1 . . . 4 . 1 2 3 . Engine 11 | 2 1 . . . 3 . 1 1 3 . Core 2 | . . . . . 1 . . 1 . . Reactor . | . . . . . . . . . . . Propulsion 31 | 2 3 . . . 10 3 1 2 7 3 Treads . | . . . . . . . . . . . Leg 1 | . . . . . . . . . 1 . Wheel 30 | 2 3 . . . 10 3 1 2 6 3 Hover . | . . . . . . . . . . . Flight . | . . . . . . . . . . . Utility 25 | 2 2 . 1 . 10 1 . 3 6 . Device 8 | 1 . . . . 3 . . . 4 . Storage 4 | 1 1 . 1 . 1 . . . . . Processor 7 | . . . . . 4 . . 2 1 . Hackware . | . . . . . . . . . . . Protection 6 | . 1 . . . 2 1 . 1 1 . Artifact . | . . . . . . . . . . . Weapon 19 | 2 3 . . . 4 2 . 1 7 . Energy Gun 1 | . 1 . . . . . . . . . Energy Cannon . | . . . . . . . . . . . Ballistic Gun 14 | 2 1 . . . 2 2 . 1 6 . Ballistic Cannon 4 | . 1 . . . 2 . . . 1 . Launcher . | . . . . . . . . . . . Special Weapon . | . . . . . . . . . . . Impact Weapon . | . . . . . . . . . . . Slashing Weapon . | . . . . . . . . . . . Piercing Weapon . | . . . . . . . . . . . Special Melee Weapon . | . . . . . . . . . . . Unidentified Prototypes 1 | . . . . . . . . . 1 . Parts Lost 44 | . 1 . . . 22 5 1 . 6 9 Power 4 | . . . . . 4 . . . . . Propulsion 23 | . . . . . 9 3 1 . 4 6 Utility 7 | . . . . . 5 . . . . 2 Weapon 10 | . 1 . . . 4 2 . . 2 1 Highest Loss Streak 9 | . 1 . . . 8 4 1 . 4 9 To Critical Strikes 2 | . . . . . 1 . . . . 1 Average Backups 18 | . 10 15 15 15 12 23 23 23 22 22 Power 1 | . 1 2 2 2 1 2 2 1 1 1 Propulsion 2 | . 2 4 4 4 2 1 2 3 2 2 Utility 9 | . 3 5 5 5 5 14 14 13 12 14 Weapon 4 | . 2 4 4 4 4 5 5 5 5 5 Tool/Special . | . . . . . . . . . . . Unused Backups 39 | . 4 . . . 1 7 . 6 3 18 Power 7 | . . . . . 1 3 . 1 1 1 Propulsion . | . . . . . . . . . . . Utility 24 | . 4 . . . . 2 . 4 2 12 Weapon 8 | . . . . . . 2 . 1 . 5 Tool/Special . | . . . . . . . . . . . Average Slot Usage (%) 94 | . 99 100 100 100 83 97 100 99 92 68 Engine 9 | . 14 14 14 14 7 9 9 8 6 4 Wheel 26 | . 28 28 28 28 25 24 27 27 25 20 Device 3 | . 2 . . . 7 . . . 9 10 Storage 9 | . 14 14 14 14 9 9 9 9 6 5 Processor 14 | . . . . . 10 27 27 27 15 11 Protection 8 | . 11 14 14 14 4 9 9 9 6 1 Ballistic Gun 16 | . 22 14 14 14 9 15 18 18 19 7 Ballistic Cannon 4 | . 2 14 14 14 9 2 . . . 4 Peak Build Rating 53 | 7 9 9 9 9 25 28 28 34 53 50 Average Rating 24 | 4 7 9 9 9 16 26 27 30 47 38 On Entrance 18 | . 7 9 9 9 9 25 28 27 34 50 Avg Prop Armor Cover (%) . | . . . . . . . . . . . Naked Turns 9 | . . . . . . . . . . 9 Heaviest Build 133 | 15 34 34 54 54 133 106 106 105 117 117 Greatest Support 48 | 26 26 26 26 26 36 36 36 38 48 42 Greatest Overweight (x) 5 | . 1 1 2 2 5 4 2 3 3 4 Average Overweight (x) 1 | . . 1 1 2 1 2 2 2 2 2 Largest Inventory Capacity 25 | 8 15 15 20 20 25 25 25 25 25 25 Average Capacity 21 | 6 12 15 15 20 20 25 25 25 25 23 Most Carried 25 | 2 15 15 15 15 24 25 25 25 25 25 Average Carried 18 | 1 10 15 15 15 12 24 24 24 24 23 Final Capacity 25 | 8 15 15 20 20 25 25 25 25 25 5 Final Carried 25 | 2 15 15 15 15 24 25 24 25 25 5 Scrap Suit Usage (%) 1 | . . . . . . . . . 1 . Class Distribution -------------------- 42% | Mutant 30% | Commander-Mutant 9% | Scavenger-Gunner 8% | Scavenger-Mutant 4% | Scavenger-Tank Dominant Class ---------------- Mutant | -10/Materials Mutant | -10/Mines Mutant | -10/Exiles Mutant | -9/Mines Mutant | -8/Materials Commander-Mutant | -8/Storage Commander-Mutant | -8/Recycling Commander-Mutant | -8/Scraptown Scavenger-Gunner | -6/Factory Scavenger-Gunner | -6/Waste Resources | -11 -10 -10 -10 -9 -8 -8 -8 -8 -6 -6 ----------- Run | Yrd Mat Min Exi Min Mat Sto Rec Scr Fac Was Matter Collected 4038 | 220 644 304 . . 1179 461 33 97 1100 . Remotely 732 | . . . . . 474 . . . 258 . Salvage Created 3766 | 10 525 147 . . 1075 623 . . 1386 . Parts 221 | 2 44 10 . . 63 38 . . 64 . Haulers Intercepted 2 | . 1 . . . 1 . . . . . Recyclers Shooed 6 | . . . . . 1 . . . 5 . Parts Field Recycled . | . . . . . . . . . . . Retrieved Matter . | . . . . . . . . . . . Parts Self-Destructed . | . . . . . . . . . . . Prevented . | . . . . . . . . . . . Parts Restored . | . . . . . . . . . . . Kills | -11 -10 -10 -10 -9 -8 -8 -8 -8 -6 -6 ------- Run | Yrd Mat Min Exi Min Mat Sto Rec Scr Fac Was Combat Hostiles Destroyed 73 | . 13 7 . . 22 13 . . 18 . Guns 54 | . 13 3 . . 11 9 . . 18 . Cannons 19 | . . 4 . . 11 4 . . . . Classes Destroyed 13 | 1 5 1 . . 5 . . . 1 . Worker 21 | . 3 . . . 10 5 . . 3 . Builder 3 | . . . . . 2 . . . 1 . Tunneler 1 | 1 . . . . . . . . . . Hauler 2 | . 1 . . . 1 . . . . . Recycler 6 | . 2 1 . . . . . . 3 . Watcher 2 | . . . . . 2 . . . . . Swarmer 20 | . 9 6 . . . 3 . . 2 . Grunt 31 | . 4 . . . 11 6 . . 10 . Brawler 1 | . . . . . 1 . . . . . Sentry 16 | . . . . . 8 4 . . 4 . Hunter 2 | . . . . . 2 . . . . . Programmer 2 | . . . . . . . . . 2 . Assembled 1 | . . 1 . . . . . . . . Best Kill Streak 4 | 1 3 3 . . 4 4 . . 4 . Combat Bots Only 4 | . 3 3 . . 3 4 . . 4 . Max Kills in Single Turn 2 | 1 1 2 . . 1 2 . . 2 . Gunslinging . | . . . . . . . . . . . Exploded . | . . . . . . . . . . . Melee . | . . . . . . . . . . . Uniques/NPCs Destroyed . | . . . . . . . . . . . Combat | -11 -10 -10 -10 -9 -8 -8 -8 -8 -6 -6 -------- Run | Yrd Mat Min Exi Min Mat Sto Rec Scr Fac Was Hostile Shots Fired 527 | . 69 19 . . 152 60 8 . 200 19 Missed 159 | . 17 6 . . 38 28 1 . 69 . Hits 368 | . 52 13 . . 114 32 7 . 131 19 Melee 24 | . . 2 . . 3 . . . . 19 Projectile 344 | . 52 11 . . 111 32 7 . 131 . Critical Strikes 19 | . . . . . 7 1 . . 5 6 Damage Taken 5327 | . 483 121 . . 1788 417 90 . 1522 906 Core 1291 | . 85 16 . . 284 35 . . 185 686 Absorbed by Shields 20 | . . . . . 20 . . . . . Ignored by Resistances 223 | . . . . . . 41 14 . 168 . Regen/Repaired (Parts) 672 | . 24 . . . . 648 . . . . Core Remaining (%) 67 | 100 . . . 59 . . . 42 . . Volleys Fired 307 | 1 50 13 . . 114 49 4 . 76 . Largest 3 | 2 2 2 . . 2 2 2 . 3 . Hottest 93 | 40 60 53 . . 62 60 51 . 93 . Shots Fired 686 | 2 100 26 . . 228 94 8 . 228 . Gun 534 | 2 99 13 . . 114 72 8 . 226 . Cannon 152 | . 1 13 . . 114 22 . . 2 . Launcher . | . . . . . . . . . . . Special . | . . . . . . . . . . . Kinetic 680 | 2 94 26 . . 228 94 8 . 228 . Thermal 6 | . 6 . . . . . . . . . Explosive . | . . . . . . . . . . . Electromagnetic . | . . . . . . . . . . . Robot Hit Streak 25 | 1 11 7 . . 13 25 9 . 22 . Robot Miss Streak 12 | . 12 4 . . 5 2 . . 7 . Penetration Max 1 | . . . . . . 1 . . 1 . Secondary Targets 5 | . 1 . . . . 1 . . 3 . Max Gunslinging Chain 1 | . 1 . . . . 1 . . 1 . Shots Hit Robots 489 | 1 53 14 . . 161 72 8 . 180 . Core Hits 224 | 1 23 8 . . 63 28 . . 101 . Critical Kills 1 | . . . . . 1 . . . . . Critical Parts Destroyed 3 | . . . . . 2 1 . . . . Critical Strikes 9 | . . 2 . . 5 2 . . . . Destroy 4 | . . . . . 3 1 . . . . Blast 5 | . . 2 . . 2 1 . . . . Melee Attacks . | . . . . . . . . . . . Impact . | . . . . . . . . . . . Slashing . | . . . . . . . . . . . Piercing . | . . . . . . . . . . . Sneak Attacks . | . . . . . . . . . . . Combat Hostiles . | . . . . . . . . . . . Follow-up Attacks . | . . . . . . . . . . . Damage Inflicted 8795 | 24 682 268 . . 3071 1429 156 . 3113 52 Guns 6534 | 24 666 125 . . 1511 966 156 . 3086 . Cannons 2209 | . 16 143 . . 1560 463 . . 27 . Explosions . | . . . . . . . . . . . Melee . | . . . . . . . . . . . Ramming 52 | . . . . . . . . . . 52 Kinetic 8689 | 24 628 268 . . 3071 1429 156 . 3113 . Thermal 54 | . 54 . . . . . . . . . Explosive . | . . . . . . . . . . . Electromagnetic . | . . . . . . . . . . . Impact . | . . . . . . . . . . . Slashing . | . . . . . . . . . . . Piercing . | . . . . . . . . . . . Highest Corruption 10 | . . . . . 3 3 3 . 1 10 Average Corruption 2 | . . . . . 3 3 3 . 1 7 Corruption Purged . | . . . . . . . . . . . Corruption Blocked . | . . . . . . . . . . . Effects 31 | . . . . . 7 15 5 . 1 3 Message Errors 5 | . . . . . . 4 1 . . . Matter Fused 10 | . . . . . 3 6 1 . . . Heat Flow Errors 3 | . . . . . 1 . 2 . . . Energy Discharges 3 | . . . . . 2 . . . 1 . Parts Rejected 2 | . . . . . . . . . . 2 Parts Fused 1 | . . . . . . . 1 . . . Data Loss (minor) 4 | . . . . . . 3 . . . 1 Data Loss (major) 1 | . . . . . . 1 . . . . Alerts 2 | . . . . . 1 1 . . . . Overload Shots . | . . . . . . . . . . . Overflow Damage 33 | . . 12 . . 21 . . . . . Projectiles 33 | . . 12 . . 21 . . . . . Explosions . | . . . . . . . . . . . Melee . | . . . . . . . . . . . Knockbacks 19 | . . 4 . . 11 3 . . 1 . Impact . | . . . . . . . . . . . Kinetic 15 | . . 3 . . 8 3 . . 1 . Secondary 4 | . . 1 . . 3 . . . . . Self-Inflicted Damage 22 | . . . . . . . . . . 22 Shots . | . . . . . . . . . . . Rammed 12 | . . . . . . . . . . 12 Targets Rammed 12 | . . . . . . . . . . 12 Kicked . | . . . . . . . . . . . Crushed . | . . . . . . . . . . . Highest Temperature 223 | . 24 . . . 217 26 223 . 83 . Average Temperature 22 | . 7 . . . 25 11 72 . 19 . Received Heat Transfer 1613 | . 96 . . . 707 153 27 . 630 . Siege Activations . | . . . . . . . . . . . Martial Activations . | . . . . . . . . . . . Shielding Activations . | . . . . . . . . . . . Robots Disrupted . | . . . . . . . . . . . Combat Hostiles . | . . . . . . . . . . . Robots Corrupted . | . . . . . . . . . . . Combat Hostiles . | . . . . . . . . . . . Parts Fried . | . . . . . . . . . . . Impact Corruptions . | . . . . . . . . . . . Robots Melted . | . . . . . . . . . . . Combat Hostiles . | . . . . . . . . . . . Parts Melted . | . . . . . . . . . . . Heat Transferred 125 | . 125 . . . . . . . . . Parts Sabotaged . | . . . . . . . . . . . Parts Stolen . | . . . . . . . . . . . Parts Stripped . | . . . . . . . . . . . Power Chain Reactions . | . . . . . . . . . . . Alert | -11 -10 -10 -10 -9 -8 -8 -8 -8 -6 -6 ------- Run | Yrd Mat Min Exi Min Mat Sto Rec Scr Fac Was Maximum Alert Level 2 | . . . . . . 2 . . 2 . Low Security (%) 74 | 100 100 100 . 100 100 61 100 . 16 100 Level 1 18 | . . . . . . 29 . . 61 . Level 2 6 | . . . . . . 9 . . 21 . Level 3 . | . . . . . . . . . . . Level 4 . | . . . . . . . . . . . Level 5 . | . . . . . . . . . . . High Security . | . . . . . . . . . . . Max Security . | . . . . . . . . . . . Peak Influence 478 | 5 116 110 . . 159 478 196 . 432 134 Initial 179 | . 3 13 . . . 52 179 . . 134 Average 156 | . 66 50 . . 68 218 177 . 330 90 Influence Increases 3351 | 5 440 145 . . 836 884 107 . 934 . Destroy 0b10 Robot/C 1720 | . 260 120 . . 480 380 20 . 460 . Destroy 0b10 Robot/NC 180 | 5 30 5 . . 75 30 . . 35 . Destroy Leader 460 | . 52 20 . . 156 122 . . 110 . Allied During Kill 265 | . . . . . 22 207 11 . 25 . Successful Hack 118 | . 22 . . . 33 21 16 . 26 . Select Force Hacks 180 | . 60 . . . 30 30 60 . . . Disable Machine 105 | . . . . . 15 60 . . 30 . Anti-Garrison Action 200 | . . . . . . . . . 200 . Destroy Structure 18 | . 1 . . . 10 4 . . 3 . Partial Spotted 15 | . . . . . . 15 . . . . Lose Combat Pursuer 90 | . 15 . . . 15 15 . . 45 . Influence Decreases 3351 | . 409 176 5 . 711 549 411 156 551 383 Entered New Map 789 | . 2 23 5 . . 73 281 156 . 249 Time Decay 1977 | . 397 143 . . 451 386 120 . 430 50 Lost Part 434 | . 10 . . . 220 50 10 . 60 84 Lost Ally 151 | . . 10 . . 40 40 . . 61 . Squads Dispatched 21 | . 2 . . . 6 2 . . 11 . Investigation 14 | . 2 . . . 4 2 . . 6 . Extermination 2 | . . . . . . . . . 2 . Reinforcement 3 | . . . . . 1 . . . 2 . Assault . | . . . . . . . . . . . Garrison 2 | . . . . . 1 . . . 1 . Intercept . | . . . . . . . . . . . Searches Triggered . | . . . . . . . . . . . Construction Impeded . | . . . . . . . . . . . Haulers Reinforced 1 | . . . . . . . . . 1 . Active Scanning Responses . | . . . . . . . . . . . Cargo Convoy Interrupts . | . . . . . . . . . . . Stealth | -11 -10 -10 -10 -9 -8 -8 -8 -8 -6 -6 --------- Run | Yrd Mat Min Exi Min Mat Sto Rec Scr Fac Was Distress Signals 5 | . . . . . 4 1 . . . . Communications Jammed . | . . . . . . . . . . . Distress Signals . | . . . . . . . . . . . Times Spotted 124 | . 23 7 . . 35 22 1 . 30 6 Peak Tracking Total 6 | . 4 3 . . 5 4 1 . 4 6 Tactical Retreats 5 | . 1 . . . 1 1 . . 2 . Traps | -11 -10 -10 -10 -9 -8 -8 -8 -8 -6 -6 ------- Run | Yrd Mat Min Exi Min Mat Sto Rec Scr Fac Was Traps Triggered 6 | . . . . . . 4 . . 2 . Indirectly . | . . . . . . . . . . . Trap Hack Attempts . | . . . . . . . . . . . Triggered . | . . . . . . . . . . . Disarmed . | . . . . . . . . . . . Reprogrammed . | . . . . . . . . . . . Reused . | . . . . . . . . . . . Traps Extracted . | . . . . . . . . . . . Installed . | . . . . . . . . . . . Triggered . | . . . . . . . . . . . Machines | -11 -10 -10 -10 -9 -8 -8 -8 -8 -6 -6 ---------- Run | Yrd Mat Min Exi Min Mat Sto Rec Scr Fac Was Machines Disabled 7 | . . . . . 1 4 . . 2 . Max in Single Turn 1 | . . . . . 1 1 . . 1 . Garrison Access 3 | . . . . . 1 1 . . 1 . Machines Repaired . | . . . . . . . . . . . Machines Dismantled . | . . . . . . . . . . . Machines Sabotaged . | . . . . . . . . . . . Overloaded Fab Kills . | . . . . . . . . . . . Hacking | -11 -10 -10 -10 -9 -8 -8 -8 -8 -6 -6 --------- Run | Yrd Mat Min Exi Min Mat Sto Rec Scr Fac Was Machines Accessed 48 | . 11 . . . 10 10 4 4 9 . Terminals 27 | . 8 . . . 7 7 2 . 3 . Fabricators 1 | . . . . . . . . . 1 . Repair Stations 2 | . 1 . . . . 1 . . . . Recycling Units 9 | . 2 . . . 1 1 2 . 3 . Scanalyzers 2 | . . . . . 1 . . . 1 . Garrison Access 3 | . . . . . 1 1 . . 1 . Total Hacks 113 | . 22 . . . 30 30 6 9 16 . Successful 67 | . 15 . . . 15 17 5 9 6 . Failed 42 | . 6 . . . 14 12 1 . 9 . Catastrophic 6 | . 1 . . . 1 1 . . 3 . Database Lockouts 4 | . 1 . . . 1 1 . . 1 . Manual 92 | . 19 . . . 27 25 7 . 14 . Terminals 75 | . 18 . . . 25 23 4 . 5 . Fabricators 3 | . . . . . . . . . 3 . Repair Stations 7 | . 2 . . . . 5 . . . . Recycling Units 10 | . 2 . . . 1 1 2 . 4 . Scanalyzers 5 | . . . . . 3 . . . 2 . Garrison Access 4 | . . . . . 1 1 . . 2 . Terminal Hacks 26 | . 7 . . . 5 4 1 9 . . Record 4 | . . . . . . . . 4 . . Part Schematic 1 | . 1 . . . . . . . . . Robot Analysis 9 | . 2 . . . 2 1 . 4 . . Open Door 1 | . . . . . . 1 . . . . Branch Access Points 2 | . . . . . 1 1 . . . . Emergency Access Points 1 | . . . . . 1 . . . . . Recycling Unit Index 3 | . 1 . . . . 1 1 . . . Hauler Manifests 1 | . 1 . . . . . . . . . Registered Components 2 | . 1 . . . 1 . . . . . Zone Layout 1 | . 1 . . . . . . . . . Proto ID Catalog 1 | . . . . . . . . 1 . . Fabricator Hacks . | . . . . . . . . . . . Repair Station Hacks 6 | . 2 . . . . 4 . . . . Scan Component 3 | . 1 . . . . 2 . . . . Repair 3 | . 1 . . . . 2 . . . . Recycling Unit Hacks . | . . . . . . . . . . . Scanalyzer 3 | . . . . . 2 . . . 1 . Insert Component 1 | . . . . . 1 . . . . . Analyze 1 | . . . . . 1 . . . . . Retrieve Study 1 | . . . . . . . . . 1 . Garrison Access Hacks 2 | . . . . . 1 1 . . . . Seal Access 2 | . . . . . 1 1 . . . . Unauthorized Hacks 30 | . 6 . . . 7 8 4 . 5 . Terminals 20 | . 4 . . . 6 7 2 . 1 . Assimilate 1 | . 1 . . . . . . . . . Botnet 18 | . 3 . . . 6 6 2 . 1 . Detonate 1 | . . . . . . 1 . . . . Fabricators . | . . . . . . . . . . . Repair Stations . | . . . . . . . . . . . Recycling Units 9 | . 2 . . . 1 1 2 . 3 . Tunnel 6 | . 2 . . . 1 1 2 . . . Fedlink 3 | . . . . . . . . . 3 . Scanalyzers . | . . . . . . . . . . . Garrison Access 1 | . . . . . . . . . 1 . Jam 1 | . . . . . . . . . 1 . Data Cores Recovered . | . . . . . . . . . . . Used . | . . . . . . . . . . . Hacking Detections 30 | . 7 . . . 8 7 2 . 6 . Full Trace Events 4 | . . . . . 2 . . . 2 . Feedback Events . | . . . . . . . . . . . Feedback Blocked . | . . . . . . . . . . . Robot Schematics Acquired . | . . . . . . . . . . . Robots Built . | . . . . . . . . . . . Authchips . | . . . . . . . . . . . Time . | . . . . . . . . . . . Total Robot Build Rating . | . . . . . . . . . . . Part Schematics Acquired 2 | . 1 . . . 1 . . . . . Parts Built . | . . . . . . . . . . . Authchips . | . . . . . . . . . . . Time . | . . . . . . . . . . . Total Part Build Rating . | . . . . . . . . . . . Part Studies Acquired 1 | . . . . . . . . . 1 . Parts Repaired 3 | . 1 . . . . 2 . . . . Time 90 | . 26 . . . . 64 . . . . Parts Recycled . | . . . . . . . . . . . Recycled Matter . | . . . . . . . . . . . Retrieved Matter . | . . . . . . . . . . . Retrieved Components . | . . . . . . . . . . . Parts Scanalyzed 1 | . . . . . 1 . . . . . Part Schematics Acquired 1 | . . . . . 1 . . . . . Parts Damaged . | . . . . . . . . . . . Bothacking | -11 -10 -10 -10 -9 -8 -8 -8 -8 -6 -6 ------------ Run | Yrd Mat Min Exi Min Mat Sto Rec Scr Fac Was Used RIF Installer . | . . . . . . . . . . . Robots Hacked . | . . . . . . . . . . . Non-combat . | . . . . . . . . . . . Combat . | . . . . . . . . . . . Robot Hacks Applied . | . . . . . . . . . . . Relay Couplers Released . | . . . . . . . . . . . Fabnet Peak Effective % . | . . . . . . . . . . . Robots Rewired . | . . . . . . . . . . . Allies Hacked . | . . . . . . . . . . . Hacks Repelled . | . . . . . . . . . . . Allies | -11 -10 -10 -10 -9 -8 -8 -8 -8 -6 -6 -------- Run | Yrd Mat Min Exi Min Mat Sto Rec Scr Fac Was Total Allies 13 | . 1 . . 2 . 10 . . . . Largest Group 10 | . 1 1 . 2 2 10 8 8 8 . Highest-Rated Group 173 | . 10 10 . 46 46 173 140 140 140 . Highest-Rated Ally 31 | . 10 10 . 31 31 29 29 29 29 . Initial UFD Resources 40 | . . . . . . . . . 24 40 Total Orders . | . . . . . . . . . . . Ally Attacks 113 | . . . . . 6 52 6 . 49 . Total Damage 1355 | . . . . . 83 557 67 . 648 . Kills 15 | . . . . . 2 7 1 . 5 . Allies Corrupted . | . . . . . . . . . . . Allies Melted . | . . . . . . . . . . . Intel | -11 -10 -10 -10 -9 -8 -8 -8 -8 -6 -6 ------- Run | Yrd Mat Min Exi Min Mat Sto Rec Scr Fac Was Active Infowar (turns) 4867 | 1 180 . . . 1184 906 245 1161 1087 103 Optics 4215 | . . . . . 713 906 245 1161 1087 103 Seismic 678 | 1 180 . . . 497 . . . . . Robot Analysis Total 9 | . 2 . . . 2 1 . 4 . . Derelict Logs Recovered . | . . . . . . . . . . . Drone Launches . | . . . . . . . . . . . Drone Recoveries . | . . . . . . . . . . . Exploration | -11 -10 -10 -10 -9 -8 -8 -8 -8 -6 -6 ------------- Run | Yrd Mat Min Exi Min Mat Sto Rec Scr Fac Was Turns Passed 6410 | 57 979 313 272 18 1260 906 245 1161 1087 112 Spaces Moved 4383 | 45 732 253 255 16 751 498 168 927 659 79 Core 1 | 1 . . . . . . . . . . Treads . | . . . . . . . . . . . Legs . | . . . . . . . . . . . Wheels 4382 | 44 732 253 255 16 751 498 168 927 659 79 Hover . | . . . . . . . . . . . Flight . | . . . . . . . . . . . Fastest Speed 50 | 50 90 105 105 120 95 116 116 116 105 105 Average Speed 109 | 91 99 105 106 120 100 120 116 120 109 109 Slowest Speed 155 | 100 105 105 120 120 155 150 116 128 121 130 Overloaded Moves . | . . . . . . . . . . . Propulsion Burnouts . | . . . . . . . . . . . Robots Hopped . | . . . . . . . . . . . Potential Cave-ins . | . . . . . . . . . . . Cave-ins Triggered . | . . . . . . . . . . . Exploration Rate (%) 54 | 3 98 62 65 10 58 80 34 77 20 91 Regions Visited 10 Branch Regions 6 Pre-discovered Areas 8 | . 2 . . . 1 1 2 1 1 . Known Exits Taken 2 | . . . . . 1 1 . . . . Unknown Exits Taken 7 | 1 1 1 1 1 . . 1 1 . . Scrap Searched 7 | . . 1 . . . . . 6 . . Spaces Dug . | . . . . . . . . . . . Terrain Destroyed 5 | . . 1 . . 4 . . . . . Melee . | . . . . . . . . . . . Projectile 5 | . . 1 . . 4 . . . . . AOE . | . . . . . . . . . . . Terrain Rammed . | . . . . . . . . . . . Walls Destroyed . | . . . . . . . . . . . Machines Disabled . | . . . . . . . . . . . Actions | -11 -10 -10 -10 -9 -8 -8 -8 -8 -6 -6 --------- Run | Yrd Mat Min Exi Min Mat Sto Rec Scr Fac Was Total 5374 | 55 886 274 256 15 1023 714 210 971 870 100 Wait 414 | . 64 9 . . 96 132 35 15 63 . Move 4374 | 44 731 252 254 15 750 497 167 926 659 79 Hop . | . . . . . . . . . . . Pick Up 96 | 2 18 . . . 27 17 . 7 24 1 Fast Attach 38 | 6 4 . . . 11 3 1 4 4 5 Attach 39 | 1 1 . . . 17 5 1 . 11 3 Detach 8 | . 1 . . . 2 . 1 1 3 . Swap 29 | 1 5 . 1 . 3 1 . 5 13 . Drop 57 | . 12 . 1 . 3 10 1 13 17 . Fire 307 | 1 50 13 . . 114 49 4 . 76 . Melee . | . . . . . . . . . . . Ram 12 | . . . . . . . . . . 12 Kick . | . . . . . . . . . . . Crush . | . . . . . . . . . . . Escape Stasis . | . . . . . . . . . . . Rewire . | . . . . . . . . . . . Trap . | . . . . . . . . . . . Miscellaneous . | . . . . . . . . . . . Route ------- -11/Scrapyard -10/Materials (discovered 6 exits: [*Mat x3] / [*Min x2] / [*Sub]) -10/Mines (discovered 2 exits: [*Exi] / [*Sub]) -10/Exiles (discovered 2 exits: [*Min x2]) -9/Mines -8/Materials (discovered 3 exits: [*Fac] / *Sto x2) -8/Storage (discovered 2 exits: [*Fac] / *Rec) -8/Recycling -8/Scraptown -6/Factory -6/Waste (discovered 1 exit: [*Fac]) History --------- Turn | Location | Event 14 | -11/Scrapyard | Discovered new exit (range 16) 58 | -11/Scrapyard | Entered Materials 222 | -10/Materials | Discovered new exit (range 7) 317 | -10/Materials | Build established: Mutant 448 | -10/Materials | Discovered new exit (range 9) 483 | -10/Materials | Central database locked down 569 | -10/Materials | Repaired Lgt. Armor Plating 609 | -10/Materials | Discovered new exit (range 9) 776 | -10/Materials | Discovered new exit (range 13) 889 | -10/Materials | Discovered new exit (range 10) 946 | -10/Materials | Discovered new exit (range 15) 1037 | -10/Materials | Entered Mines 1037 | -10/Mines | Accompanied by 1 ally 1038 | -10/Mines | Assembled infested the area 1099 | -10/Mines | Discovered new exit (range 13) 1345 | -10/Mines | Deemed a non-threat by the Exiles lab entrance 1346 | -10/Mines | Discovered new exit (range 5) 1350 | -10/Mines | Entered Exiles 1366 | -10/Exiles | Discovered new exit (range 15) 1377 | -10/Exiles | Met 8R-AWN 1395 | -10/Exiles | Met EX-HEX 1460 | -10/Exiles | Met EX-BIN 1534 | -10/Exiles | Met EX-DEC 1613 | -10/Exiles | Discovered new exit (range 10) 1622 | -10/Exiles | Entered Mines 1622 | -9/Mines | Discovered new exit (range 16) 1640 | -9/Mines | Entered Materials 1640 | -8/Materials | Accompanied by 2 allies 1640 | -8/Materials | Evolved 4 slots: Propulsion x1, Utility x3 1645 | -8/Materials | Led the pair of lost Derelicts to an unsafe place 1826 | -8/Materials | Lost 5 parts (1p1n1u2w) 1827 | -8/Materials | Discovered new exit (range 15) 1956 | -8/Materials | Central database locked down 2206 | -8/Materials | Discovered new exit (range 4) 2277 | -8/Materials | Identified exit to Storage 2324 | -8/Materials | Lost 8 parts (1p3n3u1w) 2325 | -8/Materials | Garrison activated, responded to threat 2421 | -8/Materials | Lost 3 parts (1p1u1w) 2517 | -8/Materials | Lost 3 parts (3n) 2587 | -8/Materials | Core integrity fell below 50% 2900 | -8/Materials | Entered Storage 2988 | -8/Storage | Lost 4 parts (3n1w) 3231 | -8/Storage | Central database locked down 3281 | -8/Storage | Identified exit to Recycling 3283 | -8/Storage | Assisted by bots powering up and referring to "LRC-V3" 3504 | -8/Storage | Repaired Hvy. Armor Plating 3531 | -8/Storage | Repaired Huge Storage Unit 3590 | -8/Storage | Build established: Commander-Mutant 3615 | -8/Storage | Discovered new exit (range 13) 3770 | -8/Storage | Used back door to open Recycling access 3806 | -8/Storage | Entered Recycling 3806 | -8/Recycling | Accompanied by 8 allies 3988 | -8/Recycling | Scanned before Scraplab entrance 4004 | -8/Recycling | Entered Scraplab 4013 | -8/Recycling | Discovered new exit (range 3) 4051 | -8/Recycling | Entered Scraptown 4051 | -8/Scraptown | Accompanied by 8 allies 4051 | -8/Scraptown | System corruption cleaned by C-Scrubber 4277 | -8/Scraptown | Visited UFD Registry 4277 | -8/Scraptown | Registered with UFD as "Zerobot" 4316 | -8/Scraptown | Visited IN-MT5's Study 4332 | -8/Scraptown | Visited Fellowship of the Rings 4341 | -8/Scraptown | Visited TADAMA 4354 | -8/Scraptown | Visited Assassins FH 4376 | -8/Scraptown | Visited Cave Peace 4629 | -8/Scraptown | Visited LU-1G1's Boring Crew 4645 | -8/Scraptown | Visited Science Testing Area 4661 | -8/Scraptown | Visited DA-N13 Charitable Foundation 4667 | -8/Scraptown | Found DCF Scrap (29 items) 4728 | -8/Scraptown | Visited Derelict Rescue Squad 4840 | -8/Scraptown | Visited Supply Room 4861 | -8/Scraptown | Visited Observation Area 4873 | -8/Scraptown | Visited Scrap Suit Storage 4882 | -8/Scraptown | Found Scrap Suit 4891 | -8/Scraptown | Found Scrap Suit 4973 | -8/Scraptown | Visited Science Guys 5017 | -8/Scraptown | Visited Analyses Database 5110 | -8/Scraptown | Met Optimus 5110 | -8/Scraptown | Accepted into 0bPrime 5193 | -8/Scraptown | Discovered new exit (range 3) 5212 | -8/Scraptown | Entered Factory 5212 | -6/Factory | Accompanied by 8 allies 5212 | -6/Factory | Evolved 4 slots: Propulsion x1, Utility x2, Weapon x1 5254 | -6/Factory | Central database locked down 5276 | -6/Factory | Lost 5 allies 5332 | -6/Factory | Garrison activated, responded to threat 5392 | -6/Factory | Lost 3 allies 5519 | -6/Factory | Lost 4 parts (2n2w) 5741 | -6/Factory | Loaded intel: 8 recycling unit locations 6021 | -6/Factory | Learned location of Protoforge (-2) 6274 | -6/Factory | Build established: Scavenger-Gunner 6299 | -6/Factory | Sucked down chute 6299 | -6/Factory | Entered Waste 6314 | -6/Waste | EMP discharged 6318 | -6/Waste | Spotted C-40 Crusher 6332 | -6/Waste | Spotted C-40 Crusher 6336 | -6/Waste | Spotted C-40 Crusher 6338 | -6/Waste | Spotted C-40 Crusher 6346 | -6/Waste | Spotted C-40 Crusher 6355 | -6/Waste | Spotted C-40 Crusher 6360 | -6/Waste | Crushed by Compactor (1 part destroyed, 2 dropped) 6363 | -6/Waste | Crushed by Compactor (1 part destroyed, 2 dropped) 6364 | -6/Waste | Discovered new exit (range 11) 6383 | -6/Waste | Crushed by Compactor (1 part destroyed, 2 dropped) 6386 | -6/Waste | Crushed by Compactor (1 part destroyed, 1 dropped) 6389 | -6/Waste | Crushed by Compactor (0 parts destroyed, 1 dropped) 6391 | -6/Waste | Crushed by Compactor (1 part destroyed) 6399 | -6/Waste | Crushed by Compactor (0 parts destroyed, 1 dropped) 6402 | -6/Waste | Crushed by Compactor (1 part destroyed, 1 dropped) 6402 | -6/Waste | Crushed by Compactor (1 part destroyed, 1 dropped) 6404 | -6/Waste | System corruption reached 10% 6405 | -6/Waste | Core integrity fell below 50% 6409 | -6/Waste | Core integrity fell below 20% 6411 | -6/Waste | Destroyed by C-40 Crusher with Compactor Last Messages --------------- 06402_ Imp. Targeting Computer crushed. 06402_ Enh. Optical Array crushed. 06402_ Hcp. Matter Pod crushed. 06402_ Gauss Cannon crushed. 06403_ Slammed into C-40 Crusher. 06403_ Destabilizing: System corrupted (+2). 06404_ ALERT: Foreign system detected. Charging EMP. 06404_ Slammed into C-40 Crusher. 06404_ Hpw. Tractor Beam crushed. 06404_ Huge Storage Unit crushed. 06404_ Recoil Stabilizer crushed. 06405_ Adv. Heat Sink crushed. 06405_ Thermal Shield crushed. 06405_ Magnetic Acceleration Cannon crushed. 06405_ Flak Cannon crushed. 06405_ Slammed into C-40 Crusher. 06405_ Destabilizing: Core damaged (-42). 06406_ Slammed into C-40 Crusher. 06407_ Magnetic Acceleration Cannon crushed. 06408_ Slammed into C-40 Crusher. Map ----- +----------------------------------------------------+ | ?????????????????????????????????????????????? | | ?????????????????????????????????????????????? | | ?????????????????????????????????????????????? | | ?????????????????????????????????????????????? | | ?????????????????????????????????????????????? | | ?????????????????????????????????????????????? | | ?????????????????????????????????????????????? | | ###??????#####???????????????????????????????? | | #??????# ???????????????????????????????? | | #??????# ???????????????????????????????? | | #??????# #??????????????????????????????? | | #??????# #??????????????????????????????? | | ######## ##?????????????????????????????? | | ? ??????????????????????????????? | | ?? ??????????????????????????????? | | ???? ??????????????????????????????? | | ?????? ??????????????????????????????? | | #??????# #??????????????????????????????? | | #??????# #??############????????????????? | | #??????# #??# #????????????????? | | #??????# #??# #????????????????? | | ######## #### CC #????????????????? | | CC #????????????????? | | CC #????????????????? | | CC CCCC!#????????????????? | | CC CC@!*#????????????????? | | ######## #### CCCC!!#????????????????? | | #??????# [#??# CCCC! #????????????????? | | #??????# #??# #????????????????? | | #??????# #??############????????????????? | | ######## ###????????????????????????????? | | #????????????????????????????? | | #????????????????????????????? | | #????????????????????????????? | | #????????????????????????????? | | ######## ###????????????????????????????? | | #??????# #??????????????????????????????? | | #??????# #??????????????????????????????? | | #??????# #??????????????????????????????? | | #??????# #??????????????????????????????? | | ###?????? ??????????????????????????????? | | ????????? ?????????????????????????????? | | ????????? #????????????????????????????? | | ???????? #????????????????????????????? | | ???????? #????????????????????????????? | | ???????? #????????????????????????????? | | ???????# #????????????????????????????? | | ???????# #????????????????????????????? | | ???????##########????????????????????????????? | | ?????????????????????????????????????????????? | +----------------------------------------------------+ Best States ------------- Heat Dissipation 37 Energy Generation 18 Energy Capacity 275 Matter Stores 300 Matter Capacity 300 Sight Range 22 Terrain Scan Density 10 Armor Coverage 225 Resistance: KI 20 Resistance: TH 20 Evasion (%) 42 Targeting Accuracy 12 Recoil Reduction 4 Item Schematics ----------------- Huge Storage Unit | -10/Materials | Hacked Wheel | -8/Materials | Scanalyzed Robot Schematics ------------------ None Fabricated ------------ Nothing Repaired ---------- Lgt. Armor Plating | 73% | -10/Materials Hvy. Armor Plating | 20% | -8/Storage Huge Storage Unit | 32% | -8/Storage Studied --------- Wheel | -6/Factory | Hacked Alien Tech Used ----------------- None Achievements -------------- None Challenges ------------ None Game ------ Seed MultireflexReactionClaws Manual? 0 Play Time 01:07:31 Cumulative 178.2 hours Start 2026.07.06 @ 14:45:23 End 2026.07.06 @ 16:13:42 Sessions 3 Manual Loads 0 Difficulty Rogue Special Mode None Game No. 239 Rogue 239 Adventurer 0 Explorer 0 Win Type - Total 3 Types 3/0/0/0/0/0/0/0/0/0 Lore% 76 Gallery% 56 Achievement% 43 Wizard Run 0 Options --------- Layout 0 ASCII 0 Keyboard 0 Movement Numpad Keybinds 0 Fullscreen 1 Font 18/Terminus Map View 76x50 Zoom Use 1% Tactical HUD 1 Map Filters NONE Filters NONE Steam 1 RUN: 71a7fefc-cb23-4bf6-8ea4-df3dcd51a592